bitfinex-derivatives/quotes_ETHF0:USTF0_20250702
["timestamp","ask_amount","ask_price","bid_price","bid_amount"]
[1751432963654,3.85853175,2435.2,2435.1,4.07693467]
[1751432964353,0.8212,2435.1,2435.0,4.07693467]
[1751432964657,3.19387175,2435.1,2435.0,4.07693467]
[1751432964851,8.90627175,2435.1,2435.0,3.09899467]
[1751432965156,0.8213,2434.8,2434.7,3.4651823]
[1751432965360,0.82151,2434.2,2434.1,2.37267175]
[1751432965555,25.71351,2434.2,2434.1,2.37267175]
[1751432965854,25.71351,2434.2,2434.1,1.4319]
[1751432967158,25.71451,2434.2,2434.1,1.4319]
[1751432968856,0.82151,2434.2,2434.1,1.4319]
[1751432969058,0.8215,2434.2,2434.1,3.80457175]
[1751432969352,25.7165,2434.2,2434.1,3.80457175]
[1751432970351,0.8215,2434.2,2434.1,3.80457175]
[1751432970660,25.7165,2434.2,2434.1,3.80457175]
[1751432971658,0.8215,2434.2,2434.1,3.80457175]
[1751432973558,0.8215,2434.2,2434.1,4.62611175]
[1751432974059,0.8215,2434.2,2434.1,3.80457175]
[1751432974460,0.8215,2434.2,2434.1,1.4319]
[1751432975358,0.8215,2434.2,2434.1,2.1419]
[1751432978764,0.8215,2434.2,2434.1,1.4319]
[1751432978959,0.8215,2434.2,2434.1,2.0963]
[1751432982470,0.8215,2434.2,2434.1,2.91784]
[1751432982663,0.8215,2434.2,2434.1,2.0963]
[1751432984365,4.51270777,2435.8,2434.5,0.82137]
[1751432984565,2.053,2435.1,2434.6,3.85152175]
[1751432984778,0.82133,2434.8,2434.7,2.0729]
[1751432985974,25.71633,2434.8,2434.7,2.0729]
[1751432987569,0.82133,2434.8,2434.7,2.0729]
[1751432987774,25.71533,2434.8,2434.7,2.0729]
[1751432989074,0.82133,2434.8,2434.7,2.0729]
[1751432994973,0.82133,2434.8,2434.7,2.89423]
[1751432995177,0.82127,2434.9,2434.8,0.8213]
[1751432995477,0.82127,2434.9,2434.8,8.58405149]
[1751432996072,24.89,2435.1,2434.8,3.69417175]
[1751432996377,0.82123,2435.0,2434.9,4.0723169]
[1751432996678,0.82123,2435.0,2434.9,2.0339]
[1751432999974,0.82123,2435.0,2434.9,2.85517]
[1751433000280,0.82123,2435.0,2434.9,2.85514]
[1751433003680,0.82123,2435.0,2434.9,2.0339]
[1751433003881,0.82123,2435.0,2434.9,2.85517]
[1751433004082,0.82123,2435.0,2434.9,2.0339]
[1751433005486,0.82123,2435.0,2434.9,2.85517]
[1751433005784,0.82122,2435.1,2435.0,0.82122]
[1751433005981,0.82122,2435.1,2435.0,4.47127175]
[1751433006484,0.82123,2435.0,2434.9,0.6664]
[1751433006684,0.82123,2435.0,2434.9,4.7387169]
[1751433007079,0.82123,2435.0,2434.9,4.0723169]
[1751433007381,0.82127,2434.9,2434.8,4.0723169]
[1751433007784,0.82133,2434.7,2434.6,10.20660101]
[1751433008285,0.82137,2434.6,2434.5,8.78760101]
[1751433008481,0.82137,2434.6,2434.5,3.09057175]
[1751433008882,0.82137,2434.6,2434.5,4.53067175]
[1751433009385,0.82137,2434.6,2434.5,5.35207175]
[1751433009980,0.82136,2434.7,2434.5,5.35207175]
[1751433010181,0.82136,2434.7,2434.6,4.07104637]
[1751433010690,0.82133,2434.7,2434.6,4.89241637]
[1751433010986,0.82133,2434.7,2434.6,6.33251637]
[1751433011887,0.82127,2434.9,2434.7,0.82133]
[1751433012189,0.82127,2434.9,2434.8,2.37267175]
[1751433012485,0.82127,2434.9,2434.8,3.06577175]
[1751433018585,0.82127,2434.9,2434.8,7.13681812]
[1751433019392,0.82127,2434.9,2434.8,8.48341812]
[1751433026897,0.82127,2434.9,2434.8,6.11074637]
[1751433027497,0.82127,2434.9,2434.8,2.0397]
[1751433027796,11.568,2435.4,2434.8,2.0397]
[1751433027996,0.82126,2435.0,2434.9,5.40856136]
[1751433028793,0.82126,2435.0,2434.9,1.3265]
[1751433029297,0.82126,2435.0,2434.9,3.69917175]
[1751433031997,0.82126,2435.0,2434.9,2.37267175]
[1751433035403,0.82126,2435.0,2434.9,3.82167175]
[1751433039310,0.82126,2435.0,2434.9,1.449]
[1751433039606,0.82126,2435.0,2434.9,3.82167175]
[1751433041108,0.82127,2434.9,2434.8,1.3912]
[1751433041610,0.82127,2434.9,2434.8,7.08822926]
[1751433041905,0.82127,2434.9,2434.8,1.3912]
[1751433043310,0.82127,2434.9,2434.8,3.5998]
[1751433043606,0.82127,2434.9,2434.8,2.7785]
[1751433047112,0.8213,2434.8,2434.7,5.69702926]
[1751433047613,0.82133,2434.7,2434.6,3.06257175]
[1751433047813,0.82133,2434.7,2434.6,4.38327175]
[1751433048216,0.82133,2434.7,2434.6,2.0106]
[1751433048419,0.82133,2434.7,2434.6,6.40712108]
[1751433049117,0.82133,2434.7,2434.6,0.6899]
[1751433049317,0.82133,2434.7,2434.6,4.77378126]
[1751433050314,0.82133,2434.7,2434.6,7.14645301]
[1751433050514,0.82133,2434.7,2434.6,3.06257175]
[1751433052215,0.82133,2434.7,2434.6,0.6899]
[1751433052416,0.82133,2434.7,2434.6,3.06257175]
[1751433066028,0.82133,2434.7,2434.6,4.48257175]
[1751433080646,0.82137,2434.6,2434.5,6.40712108]
[1751433080846,0.82137,2434.6,2434.5,8.77979283]
[1751433081543,0.82137,2434.6,2434.5,8.08989283]
[1751433087749,0.8214,2434.5,2434.4,5.71722108]
[1751433092247,0.82143,2434.4,2434.3,8.81479283]
[1751433092448,0.82143,2434.4,2434.3,10.14589283]
[1751433093751,0.82143,2434.4,2434.3,9.43530358]
[1751433095052,0.82143,2434.4,2434.3,10.25677358]
[1751433099054,0.82143,2434.4,2434.3,9.43530358]
[1751433099554,0.82143,2434.4,2434.3,10.25677358]
[1751433105059,0.82143,2434.4,2434.3,9.43530358]
[1751433105559,0.82143,2434.4,2434.3,10.25677358]
[1751433106361,0.82143,2434.4,2434.3,7.37930358]
[1751433106658,0.82147,2434.3,2434.2,7.37930358]
[1751433108463,0.82147,2434.3,2434.2,1.6620825]
[1751433109262,0.82147,2434.3,2434.2,7.37930358]
[1751433109862,0.82147,2434.3,2434.2,9.52775908]
[1751433115563,0.82147,2434.3,2434.2,8.09205908]
[1751433129784,0.82147,2434.3,2434.2,7.37966882]
[1751433130584,0.82147,2434.3,2434.2,8.79876882]
[1751433130888,0.82147,2434.3,2434.2,7.13632108]
[1751433131089,0.82147,2434.3,2434.2,8.79876882]
[1751433140493,0.82147,2434.3,2434.2,3.08154774]
[1751433148099,25.66147,2434.3,2434.2,3.08154774]
[1751433148803,0.82147,2434.4,2434.2,3.08154774]
[1751433148997,0.82143,2434.5,2434.3,7.92218176]
[1751433149203,0.82143,2434.5,2434.4,3.70724774]
[1751433149800,0.82143,2434.5,2434.4,9.4400895]
[1751433150404,0.82143,2434.5,2434.4,10.2615195]
[1751433151404,0.82143,2434.5,2434.4,9.4400895]
[1751433151608,0.82143,2434.5,2434.4,10.2615195]
[1751433152604,0.82143,2434.5,2434.4,4.52867774]
[1751433153306,0.82143,2434.5,2434.4,2.0448]
[1751433153605,0.82143,2434.5,2434.4,3.70724774]
[1751433154205,0.82143,2434.5,2434.4,9.4400895]
[1751433157316,0.82143,2434.5,2434.4,10.2615195]
[1751433158514,0.82143,2434.5,2434.4,9.4400895]
[1751433158906,0.82143,2434.5,2434.4,10.1588895]
[1751433160016,0.82143,2434.5,2434.4,9.4400895]
[1751433161221,0.82143,2434.5,2434.4,8.0721895]
[1751433161822,0.82143,2434.5,2434.4,6.40974176]
[1751433163316,0.82143,2434.5,2434.4,5.73284176]
[1751433163817,0.82143,2434.4,2434.3,5.73284176]
[1751433170121,0.82147,2434.3,2434.2,6.41474176]
[1751433171625,0.82147,2434.3,2434.2,0.6819]
[1751433173023,0.8215,2434.2,2434.1,5.73284176]
[1751433174028,0.82154,2434.1,2434.0,8.39734176]
[1751433174528,0.82154,2434.1,2434.0,10.77191445]
[1751433176029,0.82154,2434.1,2434.0,8.39734176]
[1751433177129,0.82154,2434.1,2434.0,7.73674176]
[1751433177325,0.82154,2434.1,2434.0,6.40464176]
[1751433177521,0.82154,2434.1,2434.0,5.73284176]
[1751433177832,30.64854,2434.1,2434.0,5.73284176]
[1751433178123,31.97264,2434.1,2434.0,4.09355883]
[1751433178522,0.82157,2434.0,2433.9,4.09355883]
[1751433178720,3.86134269,2434.0,2433.9,4.09355883]
[1751433179230,3.86134269,2434.0,2433.8,4.09355883]
[1751433179231,0.8216,2433.9,2433.8,4.09355883]
[1751433180730,0.82164,2433.8,2433.7,4.09355883]
[1751433181322,25.64764,2433.8,2433.7,4.09355883]
[1751433181633,0.82167,2433.7,2433.6,8.54573152]
[1751433181831,0.82167,2433.7,2433.6,7.15033152]
[1751433182626,0.82167,2433.7,2433.6,4.09355883]
[1751433183431,0.8217,2433.6,2433.5,45.55075883]
[1751433183829,0.8217,2433.6,2433.5,41.4572]
[1751433184323,0.8217,2433.6,2433.5,45.54560758]
[1751433185134,0.8217,2433.6,2433.5,46.36734758]
[1751433185333,0.8217,2433.6,2433.5,47.05324758]
[1751433185634,0.8217,2433.6,2433.5,46.23150758]
[1751433188733,0.8217,2433.6,2433.5,45.54560758]
[1751433189034,0.8217,2433.6,2433.5,46.23390758]
[1751433189838,0.8217,2433.6,2433.5,47.89710915]
[1751433190034,0.8217,2433.6,2433.5,46.23390758]
[1751433190234,0.8217,2433.6,2433.5,47.89710915]
[1751433190435,0.8217,2433.6,2433.5,48.71884915]
[1751433190635,0.8217,2433.6,2433.5,47.89710915]
[1751433191140,0.8217,2433.6,2433.5,48.71884915]
[1751433192342,0.8217,2433.6,2433.5,47.89710915]
[1751433192739,0.8217,2433.6,2433.5,48.71884915]
[1751433194045,1.66320157,2434.1,2433.5,47.89710915]
[1751433194249,0.82167,2433.8,2433.7,2.48486157]
[1751433194542,0.82158,2434.0,2433.9,0.82159]
[1751433194746,0.82158,2434.0,2433.9,1.66320157]
[1751433194934,0.8216,2433.9,2433.8,1.9949]
[1751433195136,0.8216,2433.9,2433.8,46.87748452]
[1751433195342,0.8216,2433.9,2433.8,42.7949]
[1751433195540,0.8216,2433.9,2433.8,6.07859654]
[1751433198049,0.8216,2433.9,2433.8,4.08369654]
[1751433198542,0.82164,2433.8,2433.7,4.08369654]
[1751433199344,0.82167,2433.7,2433.6,0.6707]
[1751433207553,0.82167,2433.7,2433.6,6.40354176]
[1751433208257,0.82167,2433.7,2433.6,7.22525176]
[1751433208460,0.82167,2433.7,2433.6,7.76544176]
[1751433209058,0.82167,2433.7,2433.6,8.58715176]
[1751433209260,0.82167,2433.7,2433.6,7.76544176]
[1751433215863,0.82162,2433.9,2433.8,0.82162]
[1751433216167,0.82158,2434.0,2433.9,0.82159]
[1751433216467,0.82158,2434.0,2433.9,2.87489]
[1751433216656,0.82158,2434.0,2433.9,3.57389]
[1751433216858,0.82155,2434.1,2433.9,2.7523]
[1751433217056,0.82155,2434.1,2434.0,5.46582726]
[1751433217258,14.95126,2434.5,2434.0,8.66314391]
[1751433217456,0.8215,2434.2,2434.1,4.57066665]
[1751433217866,0.8215,2434.2,2434.1,1.3734]
[1751433218562,0.8215,2434.2,2434.1,2.19494]
[1751433219058,0.8215,2434.2,2434.1,2.89284]
[1751433220172,0.8215,2434.2,2434.1,2.0713]
[1751433222468,0.8215,2434.2,2434.1,2.89284]
[1751433229874,0.8215,2434.3,2434.2,0.8215]
[1751433230069,11.538,2434.5,2434.3,0.82145]
[1751433230070,0.82146,2434.4,2434.3,0.82145]
[1751433230279,0.82146,2434.4,2434.3,4.51999665]
[1751433230477,0.82143,2434.5,2434.3,4.51999665]
[1751433230777,0.82143,2434.5,2434.4,1.3228]
[1751433232983,0.82143,2434.5,2434.4,5.40435327]
[1751433237788,0.82143,2434.5,2434.4,4.08155327]
[1751433240889,0.82143,2434.5,2434.4,5.46975327]
[1751433241487,0.82143,2434.5,2434.4,4.58538665]
[1751433243293,0.82143,2434.5,2434.4,3.76394665]
[1751433246299,0.82143,2434.5,2434.4,4.58538665]
[1751433246794,0.82143,2434.5,2434.4,3.76394665]
[1751433247093,0.82143,2434.5,2434.4,4.58538665]
[1751433250390,0.82139,2434.6,2434.5,0.82139]
[1751433250592,0.8214,2434.5,2434.4,3.19716665]
[1751433251493,0.82139,2434.6,2434.5,0.82139]
[1751433251798,0.82139,2434.6,2434.5,1.53659]
[1751433252095,0.82139,2434.6,2434.5,0.7152]
[1751433253199,0.82139,2434.6,2434.5,1.5366]
[1751433253501,0.82139,2434.6,2434.5,0.7152]
[1751433253695,0.82139,2434.6,2434.5,1.5366]
[1751433253895,0.82139,2434.6,2434.5,0.7152]
[1751433254296,2.05281,2435.4,2434.5,5.7152]
[1751433254495,0.6738,2435.3,2434.8,2.37574665]
[1751433254799,0.82127,2434.9,2434.8,48.73953748]
[1751433255000,0.82127,2434.9,2434.8,47.91825748]
[1751433256099,0.82127,2434.9,2434.8,45.54251083]
[1751433256398,0.82127,2434.9,2434.8,41.456]
[1751433260500,0.82127,2434.9,2434.8,0.656]
[1751433262903,2.37574665,2435.2,2434.8,1.4773]
[1751433263106,0.82127,2435.0,2434.9,4.0850697]
[1751433263404,0.82127,2435.0,2434.9,4.9063297]
[1751433263597,0.82127,2435.0,2434.9,6.2738297]
[1751433265405,0.82127,2435.0,2434.9,5.4525697]
[1751433267401,0.82127,2435.0,2434.9,6.2738397]
[1751433267703,0.82122,2435.1,2435.0,0.82123]
[1751433267893,0.82122,2435.1,2435.0,4.59477665]
[1751433268295,0.82122,2435.1,2435.0,8.67984635]
[1751433268501,0.82122,2435.1,2435.0,4.59477665]
[1751433268806,0.82122,2435.1,2435.0,1.3978]
[1751433269204,0.82122,2435.1,2435.0,5.47931783]
[1751433270105,0.82122,2435.1,2435.0,6.19131783]
[1751433273107,0.82122,2435.1,2435.0,7.01254783]
[1751433273805,0.82119,2435.2,2435.0,7.01254783]
[1751433274006,0.82119,2435.2,2435.1,6.27861783]
[1751433274406,0.82119,2435.2,2435.1,5.45741783]
[1751433275209,0.82119,2435.2,2435.1,6.27861783]
[1751433275607,3.07724665,2435.5,2435.1,6.27861783]
[1751433275608,0.82116,2435.3,2435.1,6.27861783]
[1751433275906,0.82117,2435.2,2435.1,6.27861783]
[1751433276506,0.7015,2435.5,2435.2,0.82117]
[1751433276710,0.82113,2435.3,2435.2,3.19691665]
[1751433277007,0.7015,2435.5,2435.1,4.90269783]
[1751433277008,0.82117,2435.2,2435.1,4.90269783]
[1751433277409,0.82117,2435.2,2435.1,4.08151783]
[1751433277597,0.8212,2435.1,2435.0,4.90274783]
[1751433279812,0.8212,2435.1,2435.0,0.82123]
[1751433281706,0.8212,2435.1,2435.0,2.20193]
[1751433284813,0.8212,2435.1,2435.0,1.3807]
[1751433285016,0.8212,2435.1,2435.0,2.20193]
[1751433288016,0.8212,2435.1,2435.0,1.3807]
[1751433288815,0.8212,2435.1,2435.0,2.20193]
[1751433289415,0.8212,2435.1,2435.0,7.92272825]
[1751433291214,0.8212,2435.1,2435.0,7.10149825]
[1751433293120,0.8212,2435.1,2435.0,5.72079825]
[1751433293419,0.82123,2435.0,2434.9,6.40449825]
[1751433297318,3.4057,2435.4,2434.9,8.77817403]
[1751433297518,0.82113,2435.3,2435.2,4.08665008]
[1751433297722,0.82117,2435.2,2435.1,3.19486578]
[1751433298518,2.05262,2435.6,2435.1,3.19486578]
[1751433298719,0.8211,2435.4,2435.3,4.08634482]
[1751433300614,4.09940666,2437.2,2435.5,2.05263]
[1751433300823,0.82077,2436.4,2435.9,4.08634482]
[1751433301020,0.82068,2436.7,2436.2,2.37367578]
[1751433301320,0.82065,2436.8,2436.5,0.82071]
[1751433301516,0.82062,2436.9,2436.6,0.82069]
[1751433301716,1.4154,2437.1,2436.7,2.37367578]
[1751433301922,1.20192806,2437.0,2436.9,0.82059]
[1751433302122,1.20192806,2437.0,2436.9,3.19426578]
[1751433302530,0.82047,2437.3,2437.0,0.82054]
[1751433302728,0.82045,2437.4,2436.9,2.37367578]
[1751433302932,1.19314526,2437.3,2437.2,2.37367578]
[1751433303128,1.19314526,2437.3,2437.2,3.19416578]
[1751433303334,3.27952533,2438.4,2437.2,16.0397131]
[1751433303529,9.01869466,2438.9,2438.3,2.37367578]
[1751433303735,2.37367578,2439.1,2438.5,2.37367578]
[1751433303929,2.192,2439.0,2438.7,2.37367578]
[1751433304224,0.7209,2439.4,2438.4,40.8]
[1751433304225,3.27952533,2439.4,2438.9,2.37367578]
[1751433304429,7.00370111,2439.8,2439.2,2.37367578]
[1751433304630,0.81976,2439.4,2439.2,2.37367578]
[1751433305132,2.37367578,2439.6,2439.0,2.37367578]
[1751433305332,2.37367578,2439.4,2438.7,14.71564578]
[1751433305534,0.81984,2439.2,2438.7,14.71564578]
[1751433305737,0.81982,2439.3,2438.8,0.81994]
[1751433305931,0.81987,2439.1,2438.8,2.37367578]
[1751433306131,1.3505,2439.3,2438.8,2.37367578]
[1751433306537,0.81987,2439.1,2438.8,2.37367578]
[1751433307125,0.8199,2439.0,2438.6,2.37367578]
[1751433307734,0.8199,2439.0,2438.6,3.19369578]
[1751433307934,0.81993,2438.9,2438.6,2.37367578]
[1751433308135,0.8199,2439.0,2438.8,2.37367578]
[1751433308627,0.81992,2438.9,2438.8,2.37367578]
[1751433309132,0.81991,2439.0,2438.8,2.37367578]
[1751433310037,0.81992,2438.9,2438.6,3.19369578]
[1751433310431,0.81992,2438.9,2438.6,2.37367578]
[1751433310632,0.81999,2438.7,2438.6,2.37367578]
[1751433310833,0.82004,2438.6,2438.4,43.17367578]
[1751433311631,0.82001,2438.7,2438.4,43.99376578]
[1751433312038,0.82001,2438.7,2438.4,43.99375578]
[1751433312238,2.37367578,2439.2,2438.6,2.37367578]
[1751433312439,0.81995,2438.9,2438.8,2.37367578]
[1751433312639,1.3593,2439.1,2438.8,2.37367578]
[1751433312640,2.04924,2439.6,2438.8,2.37367578]
[1751433312841,0.81975,2439.4,2439.3,2.37367578]
[1751433313036,0.81982,2439.2,2439.1,2.37367578]
[1751433313238,2.04924,2439.6,2438.7,2.37367578]
[1751433313239,0.81995,2438.9,2438.7,2.37367578]
[1751433313841,0.81995,2438.8,2438.7,2.37367578]
[1751433314240,0.81994,2438.9,2438.7,2.37367578]
[1751433314541,0.81994,2438.9,2438.7,3.19365578]
[1751433314741,0.81994,2438.9,2438.7,2.37367578]
[1751433315444,0.81994,2438.9,2438.7,3.19365578]
[1751433316545,1.3775,2439.2,2438.7,2.37367578]
[1751433316736,0.81995,2438.9,2438.7,3.19364578]
[1751433316938,0.81991,2439.0,2438.8,0.81995]
[1751433317133,0.81991,2439.0,2438.9,3.19359578]
[1751433317341,0.81991,2439.0,2438.9,2.37367578]
[1751433318239,0.81986,2439.1,2438.9,3.19357578]
[1751433318440,0.81989,2439.0,2438.9,2.37367578]
[1751433318647,0.81989,2439.0,2438.9,3.68967578]
[1751433319142,0.81989,2439.0,2438.9,1.316]
[1751433319344,0.81995,2438.9,2438.7,3.19363578]
[1751433320146,0.81995,2438.8,2438.7,2.37367578]
[1751433320343,2.04939,2439.4,2438.7,2.37367578]
[1751433320541,3.37999,2439.4,2438.9,2.37367578]
[1751433320847,38.74535,2439.5,2439.1,2.37367578]
[1751433321041,0.81975,2439.4,2439.3,2.37367578]
[1751433321250,0.81973,2439.5,2439.4,0.81974]
[1751433321641,0.81971,2439.6,2439.5,0.81972]
[1751433321948,25.184,2440.0,2439.5,2.37367578]
[1751433322244,0.81969,2439.6,2439.5,2.37367578]
[1751433323645,0.81969,2439.6,2439.5,3.19339578]
[1751433323947,0.81972,2439.5,2439.4,2.15153]
[1751433324144,0.81972,2439.5,2439.4,1.3318]
[1751433324446,0.81972,2439.5,2439.4,42.95155]
[1751433324646,0.81972,2439.5,2439.4,42.1318]
[1751433325147,0.81972,2439.5,2439.4,42.95155]
[1751433326050,0.8197,2439.6,2439.4,42.95155]
[1751433326245,2.41035441,2442.4,2439.5,13.19918218]
[1751433326543,5.99930666,2443.6,2439.4,52.58171189]
[1751433326544,0.26013733,2443.6,2442.4,2.04686]
[1751433326755,1.4428,2444.4,2442.5,2.1168]
[1751433327046,1.4428,2444.4,2443.2,4.53959109]
[1751433327352,4.53959109,2444.3,2443.3,6.40314053]
[1751433327544,4.53959109,2444.0,2443.3,5.35012888]
[1751433327852,2.0484,2443.4,2442.8,40.8]
[1751433328050,2.0484,2443.0,2442.8,40.8]
[1751433328250,2.06316289,2442.9,2442.8,40.8]
[1751433329049,0.07095107,2442.9,2442.8,45.33959109]
[1751433329447,12.938,2444.0,2442.8,50.33959109]
[1751433329648,2.0484,2443.3,2443.2,4.53959109]
[1751433330044,0.81829,2443.8,2443.0,5.35813109]
[1751433330343,2.0484,2443.3,2443.0,4.53959109]
[1751433330547,2.0484,2443.3,2442.9,4.53959109]
[1751433330846,2.0484,2443.3,2443.0,0.36696688]
[1751433331155,2.0484,2443.3,2443.0,2.20761]
[1751433331347,2.0484,2443.3,2443.0,1.3891]
[1751433331543,2.0484,2443.1,2442.8,40.8]
[1751433331755,12.938,2443.6,2442.8,40.8]
[1751433331756,2.0484,2442.9,2442.8,40.8]
[1751433331948,2.0484,2442.9,2442.4,2.14623]
[1751433332148,2.0484,2442.5,2442.4,0.81873]
[1751433332349,2.0484,2442.5,2442.4,0.36767241]
[1751433332547,2.0484,2442.5,2442.4,41.16767241]
[1751433333351,2.04434,2445.5,2442.5,2.04679]
[1751433333552,2.04365,2446.3,2444.5,0.81803]
[1751433333751,4.53959109,2445.6,2443.5,28.869]
[1751433334059,4.53959109,2445.3,2444.0,4.53959109]
[1751433334261,0.81799,2444.7,2443.6,40.8]
[1751433334457,19.24459109,2445.2,2444.1,4.53959109]
[1751433334661,1.3606,2444.6,2444.1,4.53959109]
[1751433334854,14.6886,2444.6,2444.2,0.81813]
[1751433335056,14.6886,2444.6,2444.1,5.35775109]
[1751433335252,1.3606,2444.6,2444.1,4.53959109]
[1751433335562,0.81806,2444.5,2444.2,0.36670125]
[1751433335762,1.3606,2444.4,2444.3,0.36670125]
[1751433336155,7.17868,2444.4,2444.3,0.36670125]
[1751433336357,13.573,2445.3,2444.3,5.63271589]
[1751433336556,0.81798,2444.8,2444.4,0.36670125]
[1751433336757,1.3606,2444.7,2444.3,0.8181]
[1751433336959,1.3606,2444.7,2444.4,0.3658911]
[1751433337262,1.3606,2444.7,2443.8,5.14873746]
[1751433337463,1.3606,2444.7,2444.3,0.81809]
[1751433337961,1.3606,2444.7,2443.9,5.38680262]
[1751433337962,14.9296,2444.7,2444.1,5.14873746]
[1751433338154,14.9296,2444.7,2444.3,0.81809]
[1751433338358,14.9296,2444.7,2444.4,0.81805]
[1751433338561,14.9296,2444.7,2444.3,0.81809]
[1751433338759,14.9296,2444.7,2444.4,0.63701181]
[1751433338956,14.9296,2444.7,2444.5,0.63701181]
[1751433339161,14.9296,2444.7,2444.6,0.63701181]
[1751433339658,58.952,2445.5,2444.6,11.02173149]
[1751433339862,1.3503,2445.4,2444.7,0.63701181]
[1751433340063,1.3503,2445.4,2444.8,0.63701181]
[1751433340363,0.81787,2445.1,2444.9,0.63701181]
[1751433340668,0.81784,2445.1,2445.0,0.63701181]
[1751433340857,0.81783,2445.2,2445.0,0.63701181]
[1751433341059,0.81781,2445.2,2445.1,0.63701181]
[1751433341262,14.38381,2445.2,2445.1,0.63701181]
[1751433341562,19.38381,2445.2,2445.1,0.63701181]
[1751433342556,14.38381,2445.2,2445.1,0.63701181]
[1751433343462,13.89319162,2445.2,2445.1,0.63701181]
[1751433344965,4.08542,2447.4,2445.1,5.63701181]
[1751433345165,15.60479,2447.3,2446.2,5.14873746]
[1751433345365,15.60479,2447.3,2445.1,5.66296823]
[1751433345366,7.30069757,2446.8,2445.1,5.66296823]
[1751433345669,0.81758,2445.9,2445.3,41.61776]
[1751433345866,0.81764,2445.8,2445.3,40.8]
[1751433346062,59.72266,2445.7,2445.1,0.81781]
[1751433346363,58.905,2445.7,2444.8,1.3438]
[1751433346564,58.905,2445.7,2445.1,40.8]
[1751433347171,58.895,2446.5,2445.4,5.14873746]
[1751433347364,0.81758,2445.9,2445.4,5.14873746]
[1751433347562,60.93846,2446.5,2445.4,5.14873746]
[1751433347563,58.895,2446.5,2445.4,5.14873746]
[1751433347763,15.60353,2446.4,2445.5,1.3123]
[1751433347962,15.60353,2446.4,2445.1,40.8]
[1751433347963,2.04364,2446.3,2445.1,40.8]
[1751433348166,2.0437,2446.2,2445.0,5.96659746]
[1751433348367,2.04387,2446.0,2445.0,1.3123]
[1751433348563,2.04387,2446.0,2444.8,1.48864]
[1751433348775,2.04408,2445.8,2444.8,0.6707]
[1751433349063,2.04408,2445.8,2444.3,0.36252585]
[1751433349064,2.04438,2445.4,2444.3,0.36252585]
[1751433349271,0.81798,2444.8,2444.3,41.16252585]
[1751433349570,13.558,2445.1,2444.3,40.8]
[1751433349776,13.558,2445.1,2444.3,42.1921]
[1751433349968,13.558,2445.1,2444.6,0.81799]
[1751433350362,13.558,2445.1,2444.7,0.81795]
[1751433350566,58.884,2445.5,2444.6,5.14873746]
[1751433350777,13.558,2445.3,2444.9,5.14873746]
[1751433350972,13.558,2445.3,2445.0,0.81785]
[1751433351274,0.81781,2445.2,2444.7,0.81795]
[1751433351468,0.81783,2445.2,2444.5,0.3656945]
[1751433351668,13.558,2445.3,2444.6,0.3656945]
[1751433351971,13.558,2445.3,2444.4,0.3656945]
[1751433352170,58.88,2446.3,2444.9,5.14873746]
[1751433352369,0.81766,2445.7,2444.9,5.14873746]
[1751433352865,43.4117,2446.2,2444.9,5.14873746]
[1751433352866,0.81763,2445.8,2444.9,5.14873746]
[1751433353068,0.81759,2445.9,2445.4,0.81774]
[1751433353270,43.4117,2446.2,2445.0,0.3656945]
[1751433353474,0.81758,2445.9,2445.1,0.3656945]
[1751433353662,44.1445,2445.8,2445.4,0.81774]
[1751433353867,44.1445,2445.8,2445.0,0.3656945]
[1751433354061,44.1445,2445.8,2445.1,1.7055945]
[1751433354267,44.1445,2445.8,2445.3,0.81775]
[1751433354471,44.1445,2445.8,2445.1,2.52721267]
[1751433354767,1.4345,2445.8,2445.2,6.70316119]
[1751433354970,1.4345,2445.8,2445.7,0.81764]
[1751433355164,58.88,2446.3,2445.7,0.36711106]
[1751433355468,60.3145,2446.3,2445.9,0.81757]
[1751433355674,60.3145,2446.3,2445.6,1.18731267]
[1751433355675,60.3145,2446.3,2446.0,0.36711106]
[1751433355971,61.13197,2446.3,2446.1,0.36711106]
[1751433356166,61.13197,2446.3,2445.8,0.81761]
[1751433356167,61.13197,2446.3,2446.2,0.36711106]
[1751433356364,61.13195,2446.3,2446.2,0.36711106]
[1751433356568,65.3145,2446.3,2446.2,0.36711106]
[1751433356770,66.13195,2446.3,2446.2,0.36711106]
[1751433356968,95.21395,2446.3,2446.2,0.36711106]
[1751433357167,0.81755,2446.0,2445.9,1.18731267]
[1751433357367,0.81755,2446.0,2445.9,1.5705176]
[1751433357669,5.81755,2446.0,2445.9,0.38320493]
[1751433358069,34.036,2446.0,2445.9,1.97419122]
[1751433358275,29.036,2446.0,2445.9,1.58085782]
[1751433358475,31.16865,2446.0,2445.9,1.97419122]
[1751433358673,30.3511,2446.0,2445.9,1.97419122]
[1751433359075,30.3511,2446.0,2445.9,1.59098629]
[1751433359973,31.16865,2446.0,2445.9,1.59098629]
[1751433360372,1.3151,2446.0,2445.8,2.40186494]
[1751433360571,36.11065,2446.0,2445.9,2.3973185]
[1751433360767,63.39846888,2446.3,2445.9,2.3973185]
[1751433360768,58.88,2446.3,2445.9,2.3973185]
[1751433360972,29.21142757,2446.8,2446.2,1.19865928]
[1751433361173,29.21142757,2446.8,2446.6,0.81732]
[1751433361377,29.24242757,2446.8,2446.7,0.81731]
[1751433361680,0.25742757,2446.8,2446.3,1.3986]
[1751433361868,4.77589645,2446.8,2446.2,1.19865928]
[1751433362069,0.81745,2446.3,2446.2,1.59821237]
[1751433362370,0.81751,2446.1,2446.0,1.91276135]
[1751433362676,0.81758,2445.9,2445.8,3.2549785]
[1751433362977,2.04422,2445.6,2445.2,3.88167991]
[1751433363172,0.81781,2445.2,2445.1,5.72079825]
[1751433363482,0.81791,2444.9,2444.6,5.72079825]
[1751433363673,30.06398,2444.8,2444.7,5.72079825]
[1751433363867,30.05298,2444.8,2444.7,5.72079825]
[1751433364175,23.10323585,2444.8,2444.5,5.72079825]
[1751433364372,23.10323585,2444.8,2444.6,2.14211]
[1751433364570,2.04438,2445.4,2444.7,5.72079825]
[1751433364774,0.81795,2444.8,2444.7,5.72079825]